[Event "Late-Titled-Tuesday-Blitz-June-25-2024"]
[Site "Chess.com"]
[Date "2024.06.25"]
[Round "8"]
[White "sergeikim"]
[Black "CFalcons8"]
[Result "1-0"]
[WhiteElo "2606"]
[BlackElo "2445"]
[TimeControl "180+1"]
[EndTime "15:27:08 PDT"]
[Termination "sergeikim won on time"]

1. d4 {[%clk 0:03:00.9]} 1... Nf6 {[%clk 0:02:47.1]} 2. c4 {[%clk 0:03:00.7]}
2... e6 {[%clk 0:02:46.2]} 3. Nc3 {[%clk 0:03:00.6]} 3... Bb4 {[%clk 0:02:44.4]}
4. Qc2 {[%clk 0:03:00.6]} 4... d5 {[%clk 0:02:39.5]} 5. a3 {[%clk 0:03:00.4]}
5... Bxc3+ {[%clk 0:02:39.6]} 6. Qxc3 {[%clk 0:03:00.6]} 6... O-O {[%clk
0:02:40.5]} 7. Nf3 {[%clk 0:03:00.2]} 7... dxc4 {[%clk 0:02:40.9]} 8. Qxc4
{[%clk 0:02:59.7]} 8... b6 {[%clk 0:02:41.6]} 9. Bf4 {[%clk 0:02:59.6]} 9... Nd5
{[%clk 0:02:39.2]} 10. Bg5 {[%clk 0:02:58.5]} 10... Qd6 {[%clk 0:02:32.4]} 11.
e4 {[%clk 0:02:56.1]} 11... Ba6 {[%clk 0:02:25.8]} 12. Qc2 {[%clk 0:02:44.9]}
12... Bxf1 {[%clk 0:02:24.6]} 13. Kxf1 {[%clk 0:02:43.9]} 13... Ne7 {[%clk
0:02:21.8]} 14. g3 {[%clk 0:02:36.1]} 14... Rc8 {[%clk 0:02:14]} 15. Kg2 {[%clk
0:02:33.2]} 15... f6 {[%clk 0:02:07.4]} 16. Be3 {[%clk 0:02:29]} 16... Qd7
{[%clk 0:02:06.6]} 17. Rhd1 {[%clk 0:02:26.1]} 17... Qe8 {[%clk 0:01:55.3]} 18.
Rac1 {[%clk 0:02:12]} 18... Nd7 {[%clk 0:01:42]} 19. b4 {[%clk 0:02:06.2]} 19...
a5 {[%clk 0:01:36.6]} 20. Qb3 {[%clk 0:02:05.6]} 20... axb4 {[%clk 0:01:33.5]}
21. Qxe6+ {[%clk 0:02:03]} 21... Kh8 {[%clk 0:01:32]} 22. axb4 {[%clk
0:02:02.3]} 22... Nf8 {[%clk 0:01:32]} 23. Qb3 {[%clk 0:01:58.9]} 23... Qa4
{[%clk 0:01:25.1]} 24. Qc3 {[%clk 0:01:53.2]} 24... c6 {[%clk 0:01:10.4]} 25. h4
{[%clk 0:01:34.5]} 25... Qb5 {[%clk 0:01:02.9]} 26. Ra1 {[%clk 0:01:27.3]} 26...
Ne6 {[%clk 0:00:57.3]} 27. Rdc1 {[%clk 0:01:13.2]} 27... Rxa1 {[%clk 0:00:52.6]}
28. Rxa1 {[%clk 0:01:12.6]} 28... f5 {[%clk 0:00:51.3]} 29. e5 {[%clk
0:01:01.3]} 29... Nd5 {[%clk 0:00:39.2]} 30. Qc2 {[%clk 0:00:58.9]} 30... g6
{[%clk 0:00:31.8]} 31. Bd2 {[%clk 0:00:45.1]} 31... Qe2 {[%clk 0:00:28.2]} 32.
Qb3 {[%clk 0:00:33.1]} 32... Nxd4 {[%clk 0:00:13.9]} 33. Nxd4 {[%clk 0:00:29.7]}
33... Qxd2 {[%clk 0:00:13.6]} 34. Nf3 {[%clk 0:00:27.6]} 34... Qxb4 {[%clk
0:00:13]} 35. Qc2 {[%clk 0:00:24.2]} 35... Qc3 {[%clk 0:00:09.3]} 36. Qa2 {[%clk
0:00:24]} 36... b5 {[%clk 0:00:07.7]} 37. Qa7 {[%clk 0:00:21.6]} 37... b4 {[%clk
0:00:04]} 38. Qd7 {[%clk 0:00:19.4]} 38... Rf8 {[%clk 0:00:03]} 39. Ra7 {[%clk
0:00:18.9]} 39... Ne3+ {[%clk 0:00:01.5]} 40. Kh3 {[%clk 0:00:15.7]} 1-0

[Event "Late-Titled-Tuesday-Blitz-June-25-2024"]
[Site "Chess.com"]
[Date "2024.06.25"]
[Round "8"]
[White "Defenstrator"]
[Black "HaryKane"]
[Result "0-1"]
[WhiteElo "2413"]
[BlackElo "2595"]
[TimeControl "180+1"]
[EndTime "15:27:10 PDT"]
[Termination "HaryKane won on time"]

1. e4 {[%clk 0:03:00.3]} 1... c5 {[%clk 0:02:57.8]} 2. Nf3 {[%clk 0:03:00.5]}
2... e6 {[%clk 0:02:57.3]} 3. d4 {[%clk 0:03:01]} 3... cxd4 {[%clk 0:02:57.6]}
4. Nxd4 {[%clk 0:03:01.8]} 4... Nf6 {[%clk 0:02:57.6]} 5. Nc3 {[%clk 0:03:01.9]}
5... Bb4 {[%clk 0:02:57.8]} 6. e5 {[%clk 0:03:01.9]} 6... Nd5 {[%clk 0:02:56.3]}
7. Qg4 {[%clk 0:03:02.2]} 7... Nxc3 {[%clk 0:02:38.2]} 8. Qxg7 {[%clk
0:02:54.1]} 8... Rf8 {[%clk 0:02:30.6]} 9. a3 {[%clk 0:02:39.6]} 9... Nb5+
{[%clk 0:02:13.1]} 10. axb4 {[%clk 0:02:32]} 10... Nxd4 {[%clk 0:02:12.2]} 11.
Bh6 {[%clk 0:02:28.2]} 11... Qe7 {[%clk 0:02:12.2]} 12. Bd3 {[%clk 0:02:14.8]}
12... Nbc6 {[%clk 0:02:06.7]} 13. Qxh7 {[%clk 0:01:48.4]} 13... Qxb4+ {[%clk
0:02:03.8]} 14. c3 {[%clk 0:01:41.3]} 14... Qxb2 {[%clk 0:02:03.6]} 15. O-O
{[%clk 0:01:38.2]} 15... Qxc3 {[%clk 0:01:42.8]} 16. Bxf8 {[%clk 0:01:25.3]}
16... Kxf8 {[%clk 0:01:31.8]} 17. Qh8+ {[%clk 0:01:23.1]} 17... Ke7 {[%clk
0:01:32.1]} 18. Qf6+ {[%clk 0:01:23.3]} 18... Kf8 {[%clk 0:01:27.6]} 19. Bg6
{[%clk 0:01:02.4]} 19... Nxe5 {[%clk 0:01:26.9]} 20. Qh8+ {[%clk 0:00:39.5]}
20... Ke7 {[%clk 0:01:26]} 21. Qh4+ {[%clk 0:00:38.1]} 21... Kd6 {[%clk
0:01:15.9]} 22. Be4 {[%clk 0:00:36.2]} 22... f5 {[%clk 0:01:10.9]} 23. Rad1
{[%clk 0:00:25.4]} 23... Kc5 {[%clk 0:01:00]} 24. Kh1 {[%clk 0:00:17.3]} 24...
fxe4 {[%clk 0:00:57.4]} 25. Rc1 {[%clk 0:00:16.5]} 25... Qxc1 {[%clk 0:00:45.8]}
26. Rxc1+ {[%clk 0:00:16.7]} 26... Kd5 {[%clk 0:00:43.7]} 27. Qd8 {[%clk
0:00:09]} 27... Nec6 {[%clk 0:00:28]} 28. Qf8 {[%clk 0:00:07.4]} 28... d6 {[%clk
0:00:27]} 29. h4 {[%clk 0:00:06.2]} 29... b6 {[%clk 0:00:25.6]} 30. h5 {[%clk
0:00:04.2]} 30... Bb7 {[%clk 0:00:22.7]} 31. Qg7 {[%clk 0:00:04.3]} 31... Ba6
{[%clk 0:00:18.7]} 32. h6 {[%clk 0:00:03.5]} 32... Nf5 {[%clk 0:00:19.3]} 33.
Qg5 {[%clk 0:00:03]} 33... Rh8 {[%clk 0:00:17.5]} 34. Rd1+ {[%clk 0:00:03]}
34... Bd3 {[%clk 0:00:17.4]} 35. Kg1 {[%clk 0:00:01.8]} 35... Rxh6 {[%clk
0:00:16.8]} 36. g4 {[%clk 0:00:02.4]} 36... Ne5 {[%clk 0:00:15.2]} 37. Qf4
{[%clk 0:00:01.4]} 37... Nf3+ {[%clk 0:00:15]} 38. Kg2 {[%clk 0:00:01.8]} 38...
Rh2+ {[%clk 0:00:08.9]} 0-1

[Event "Late-Titled-Tuesday-Blitz-June-25-2024"]
[Site "Chess.com"]
[Date "2024.06.25"]
[Round "8"]
[White "Zurability"]
[Black "Chaubunagungamaug1"]
[Result "1-0"]
[WhiteElo "2772"]
[BlackElo "2580"]
[TimeControl "180+1"]
[EndTime "15:27:13 PDT"]
[Termination "Zurability won on time"]

1. e4 {[%clk 0:02:39.9]} 1... c5 {[%clk 0:02:59.7]} 2. a3 {[%clk 0:02:34.4]}
2... e6 {[%clk 0:02:55.1]} 3. Nf3 {[%clk 0:02:26]} 3... Nc6 {[%clk 0:02:51.6]}
4. Nc3 {[%clk 0:02:25.4]} 4... Nf6 {[%clk 0:02:40.7]} 5. e5 {[%clk 0:02:25.5]}
5... Ng4 {[%clk 0:02:27.4]} 6. d4 {[%clk 0:02:18.7]} 6... cxd4 {[%clk
0:02:26.6]} 7. Nxd4 {[%clk 0:02:18.6]} 7... Ngxe5 {[%clk 0:02:26.3]} 8. f4
{[%clk 0:02:11.1]} 8... Nxd4 {[%clk 0:02:20.8]} 9. Qxd4 {[%clk 0:02:08.2]} 9...
Nc6 {[%clk 0:02:20.4]} 10. Qf2 {[%clk 0:01:57.2]} 10... d5 {[%clk 0:02:16.9]}
11. Bd3 {[%clk 0:01:57.3]} 11... g6 {[%clk 0:01:50.5]} 12. Bd2 {[%clk
0:01:42.1]} 12... Bg7 {[%clk 0:01:45.1]} 13. g4 {[%clk 0:01:35.9]} 13... a6
{[%clk 0:01:40]} 14. h4 {[%clk 0:01:35.7]} 14... h5 {[%clk 0:01:35.7]} 15. gxh5
{[%clk 0:01:21.4]} 15... Rxh5 {[%clk 0:01:33.5]} 16. O-O-O {[%clk 0:01:19.5]}
16... Bd7 {[%clk 0:01:26.3]} 17. Qg3 {[%clk 0:01:19.3]} 17... Qf6 {[%clk
0:01:14.8]} 18. f5 {[%clk 0:00:47.2]} 18... gxf5 {[%clk 0:01:01]} 19. Rhg1
{[%clk 0:00:37.8]} 19... Bf8 {[%clk 0:00:39.9]} 20. Qc7 {[%clk 0:00:17.6]} 20...
Qe5 {[%clk 0:00:19.1]} 21. Qxb7 {[%clk 0:00:15]} 21... Qb8 {[%clk 0:00:19.2]}
22. Bxa6 {[%clk 0:00:12.4]} 22... Rxh4 {[%clk 0:00:11.9]} 23. Rg8 {[%clk
0:00:10.6]} 23... Qxb7 {[%clk 0:00:07.2]} 24. Bxb7 {[%clk 0:00:10.5]} 24... Rb8
{[%clk 0:00:08]} 25. Ba6 {[%clk 0:00:09.5]} 25... Rg4 {[%clk 0:00:05.8]} 26. Rh8
{[%clk 0:00:09.2]} 26... Ke7 {[%clk 0:00:04.7]} 27. Re1 {[%clk 0:00:07.1]} 27...
Bg7 {[%clk 0:00:04.8]} 28. Nxd5+ {[%clk 0:00:06.5]} 28... Kd6 {[%clk 0:00:04.6]}
29. Rxb8 {[%clk 0:00:06.4]} 29... Nxb8 {[%clk 0:00:05.5]} 30. Ne3 {[%clk
0:00:06.6]} 30... Nxa6 {[%clk 0:00:04.2]} 31. Nxg4 {[%clk 0:00:05.2]} 31... fxg4
{[%clk 0:00:05.1]} 32. b4 {[%clk 0:00:04.7]} 32... f5 {[%clk 0:00:04.6]} 33. c4
{[%clk 0:00:04.5]} 33... Nc7 {[%clk 0:00:02.9]} 34. b5 {[%clk 0:00:03.2]} 34...
e5 {[%clk 0:00:03]} 35. Bb4+ {[%clk 0:00:03.6]} 35... Ke6 {[%clk 0:00:03.1]} 36.
Rd1 {[%clk 0:00:04.3]} 36... f4 {[%clk 0:00:03]} 37. Rd6+ {[%clk 0:00:04.6]}
37... Ke7 {[%clk 0:00:02.4]} 38. Rc6+ {[%clk 0:00:04.6]} 38... Kd8 {[%clk
0:00:02.9]} 39. Rg6 {[%clk 0:00:05.2]} 39... Ne6 {[%clk 0:00:01.1]} 40. b6
{[%clk 0:00:05.3]} 40... g3 {[%clk 0:00:01.6]} 41. Bd6 {[%clk 0:00:05.2]} 41...
f3 {[%clk 0:00:01.4]} 42. b7 {[%clk 0:00:05.3]} 1-0

[Event "Late-Titled-Tuesday-Blitz-June-25-2024"]
[Site "Chess.com"]
[Date "2024.06.25"]
[Round "8"]
[White "kinga2008"]
[Black "Nf3c5"]
[Result "0-1"]
[WhiteElo "2534"]
[BlackElo "2642"]
[TimeControl "180+1"]
[EndTime "15:27:16 PDT"]
[Termination "Nf3c5 won on time"]

1. e4 {[%clk 0:03:00.9]} 1... c5 {[%clk 0:03:00.3]} 2. Nf3 {[%clk 0:03:01.2]}
2... Nc6 {[%clk 0:03:00.3]} 3. c3 {[%clk 0:03:01.5]} 3... Nf6 {[%clk 0:02:59.3]}
4. e5 {[%clk 0:03:01.8]} 4... Nd5 {[%clk 0:03:00]} 5. d4 {[%clk 0:03:02.7]} 5...
cxd4 {[%clk 0:03:00.3]} 6. cxd4 {[%clk 0:03:03.6]} 6... d6 {[%clk 0:03:00.7]} 7.
exd6 {[%clk 0:03:04.4]} 7... e6 {[%clk 0:02:53.2]} 8. Nc3 {[%clk 0:03:04.4]}
8... Nxc3 {[%clk 0:02:51.4]} 9. bxc3 {[%clk 0:03:05.3]} 9... Bxd6 {[%clk
0:02:47.6]} 10. Bd3 {[%clk 0:03:05.6]} 10... h6 {[%clk 0:02:42.8]} 11. O-O
{[%clk 0:03:05.3]} 11... O-O {[%clk 0:02:40.9]} 12. Qe2 {[%clk 0:03:05]} 12...
Qc7 {[%clk 0:02:33.8]} 13. Re1 {[%clk 0:03:00.1]} 13... b6 {[%clk 0:02:20.5]}
14. h3 {[%clk 0:02:52.1]} 14... Bd7 {[%clk 0:02:17.6]} 15. Qe4 {[%clk
0:02:47.4]} 15... f5 {[%clk 0:02:17.2]} 16. Qh4 {[%clk 0:02:47.1]} 16... Be7
{[%clk 0:02:05.4]} 17. Qf4 {[%clk 0:02:39.4]} 17... Bd6 {[%clk 0:02:03.1]} 18.
Qh4 {[%clk 0:02:37.3]} 18... Be7 {[%clk 0:02:02.8]} 19. Qf4 {[%clk 0:02:34.3]}
19... Bd6 {[%clk 0:01:58]} 20. Qe3 {[%clk 0:02:34.3]} 20... Rf6 {[%clk
0:01:58.9]} 21. Kh1 {[%clk 0:02:17.2]} 21... Re8 {[%clk 0:01:57.4]} 22. c4
{[%clk 0:02:12.2]} 22... e5 {[%clk 0:01:52.2]} 23. d5 {[%clk 0:01:37.3]} 23...
Nb4 {[%clk 0:01:30.9]} 24. Bb2 {[%clk 0:01:30.1]} 24... Nxd3 {[%clk 0:01:15.7]}
25. Qxd3 {[%clk 0:01:28.7]} 25... e4 {[%clk 0:01:15.7]} 26. Qc3 {[%clk
0:01:07.7]} 26... exf3 {[%clk 0:01:12.5]} 27. Qxf3 {[%clk 0:01:00.1]} 27... Be5
{[%clk 0:01:02.3]} 28. Bxe5 {[%clk 0:00:50.5]} 28... Rxe5 {[%clk 0:01:03.2]} 29.
Qc3 {[%clk 0:00:47.8]} 29... Rxd5 {[%clk 0:00:49.7]} 30. Re7 {[%clk 0:00:40.1]}
30... Rdd6 {[%clk 0:00:41.5]} 31. Rae1 {[%clk 0:00:33.8]} 31... Qc6 {[%clk
0:00:39.9]} 32. R1e3 {[%clk 0:00:21.3]} 32... Rg6 {[%clk 0:00:38.5]} 33. Rg3
{[%clk 0:00:21.2]} 33... Rxg3 {[%clk 0:00:34.7]} 34. fxg3 {[%clk 0:00:20.2]}
34... Rg6 {[%clk 0:00:35.3]} 35. Qd3 {[%clk 0:00:18.1]} 35... Be6 {[%clk
0:00:33]} 36. Qd8+ {[%clk 0:00:14.3]} 36... Kh7 {[%clk 0:00:32.4]} 37. Kh2
{[%clk 0:00:14.9]} 37... f4 {[%clk 0:00:27]} 38. g4 {[%clk 0:00:11.6]} 38... f3
{[%clk 0:00:26.2]} 39. gxf3 {[%clk 0:00:11.8]} 39... Qxf3 {[%clk 0:00:25.3]} 40.
Re8 {[%clk 0:00:11.1]} 40... Qf2+ {[%clk 0:00:22.3]} 41. Kh1 {[%clk 0:00:11.6]}
41... Qf3+ {[%clk 0:00:18.4]} 42. Kh2 {[%clk 0:00:11.7]} 42... Rf6 {[%clk
0:00:19.1]} 43. Rh8+ {[%clk 0:00:09.7]} 43... Kg6 {[%clk 0:00:19.7]} 44. Qe8+
{[%clk 0:00:04.6]} 44... Bf7 {[%clk 0:00:19.6]} 45. Qe1 {[%clk 0:00:01.5]} 45...
Re6 {[%clk 0:00:16.8]} 0-1

[Event "Late-Titled-Tuesday-Blitz-June-25-2024"]
[Site "Chess.com"]
[Date "2024.06.25"]
[Round "8"]
[White "Gyulamiryan-koryun"]
[Black "Viktor_Poddubnyi"]
[Result "0-1"]
[WhiteElo "1826"]
[BlackElo "2330"]
[TimeControl "180+1"]
[EndTime "15:27:17 PDT"]
[Termination "Viktor_Poddubnyi won on time"]

1. e4 {[%clk 0:02:57.6]} 1... g6 {[%clk 0:03:00.5]} 2. d4 {[%clk 0:02:56.5]}
2... Bg7 {[%clk 0:03:01]} 3. f4 {[%clk 0:02:56.8]} 3... d6 {[%clk 0:03:00.7]} 4.
Nf3 {[%clk 0:02:56.7]} 4... Nf6 {[%clk 0:02:59.3]} 5. Nc3 {[%clk 0:02:55.1]}
5... O-O {[%clk 0:02:59.4]} 6. Be2 {[%clk 0:02:46.8]} 6... Nc6 {[%clk 0:02:59]}
7. Be3 {[%clk 0:02:45.9]} 7... e5 {[%clk 0:02:51.8]} 8. fxe5 {[%clk 0:02:44.8]}
8... dxe5 {[%clk 0:02:51.1]} 9. d5 {[%clk 0:02:44.8]} 9... Ne7 {[%clk
0:02:34.2]} 10. O-O {[%clk 0:02:37.5]} 10... Ne8 {[%clk 0:02:31.9]} 11. Qd2
{[%clk 0:02:36]} 11... Nd6 {[%clk 0:02:30.7]} 12. Bh6 {[%clk 0:02:34.8]} 12...
Bd7 {[%clk 0:02:21.1]} 13. Bxg7 {[%clk 0:02:32.8]} 13... Kxg7 {[%clk 0:02:20.3]}
14. Nxe5 {[%clk 0:02:32.8]} 14... f6 {[%clk 0:02:11.4]} 15. Nxd7 {[%clk
0:02:20.3]} 15... Qxd7 {[%clk 0:02:12.3]} 16. Qd4 {[%clk 0:02:12.1]} 16... Rae8
{[%clk 0:01:24]} 17. e5 {[%clk 0:02:09]} 17... Ndf5 {[%clk 0:01:21.7]} 18. exf6+
{[%clk 0:02:04.4]} 18... Rxf6 {[%clk 0:01:22.6]} 19. Qxa7 {[%clk 0:01:55.3]}
19... Nxd5 {[%clk 0:01:13.5]} 20. Nxd5 {[%clk 0:01:44.8]} 20... Qxd5 {[%clk
0:01:11.9]} 21. Bf3 {[%clk 0:01:42.5]} 21... Qe5 {[%clk 0:00:51.5]} 22. Qxb7
{[%clk 0:01:36.8]} 22... Rb6 {[%clk 0:00:47.3]} 23. Qd5 {[%clk 0:01:27.2]} 23...
Rxb2 {[%clk 0:00:46.2]} 24. Qxe5+ {[%clk 0:01:25.4]} 24... Rxe5 {[%clk
0:00:47.1]} 25. c4 {[%clk 0:01:22.9]} 25... Nh4 {[%clk 0:00:37.1]} 26. Bd5
{[%clk 0:01:20.4]} 26... Ree2 {[%clk 0:00:31.1]} 27. Rae1 {[%clk 0:01:06.7]}
27... Red2 {[%clk 0:00:13.4]} 28. Re7+ {[%clk 0:01:05.7]} 28... Kh6 {[%clk
0:00:12.8]} 29. a4 {[%clk 0:00:54.6]} 29... Nxg2 {[%clk 0:00:12.5]} 30. Bg8
{[%clk 0:00:31.2]} 30... Ne3 {[%clk 0:00:07.8]} 31. Rxh7+ {[%clk 0:00:29.9]}
31... Kg5 {[%clk 0:00:07.6]} 32. Rc1 {[%clk 0:00:17.1]} 32... Ng4 {[%clk
0:00:05.5]} 33. Bd5 {[%clk 0:00:14.1]} 33... Nxh2 {[%clk 0:00:04.9]} 34. a5
{[%clk 0:00:11.2]} 34... Ra2 {[%clk 0:00:03.9]} 35. Kh1 {[%clk 0:00:02.6]} 35...
Ng4 {[%clk 0:00:03.8]} 0-1

[Event "Late-Titled-Tuesday-Blitz-June-25-2024"]
[Site "Chess.com"]
[Date "2024.06.25"]
[Round "8"]
[White "HansOnTwitch"]
[Black "ChristopherYoo"]
[Result "1-0"]
[WhiteElo "3120"]
[BlackElo "3035"]
[TimeControl "180+1"]
[EndTime "15:27:19 PDT"]
[Termination "HansOnTwitch won on time"]

1. e4 {[%clk 0:03:00.9]} 1... e5 {[%clk 0:02:59.6]} 2. Nf3 {[%clk 0:03:00.7]}
2... Nc6 {[%clk 0:03:00.3]} 3. Bc4 {[%clk 0:03:01.3]} 3... Nf6 {[%clk
0:02:59.8]} 4. d3 {[%clk 0:03:01.9]} 4... Bc5 {[%clk 0:02:59.9]} 5. O-O {[%clk
0:03:01.4]} 5... O-O {[%clk 0:02:59]} 6. Nbd2 {[%clk 0:03:01.8]} 6... d6 {[%clk
0:02:58.6]} 7. c3 {[%clk 0:03:02]} 7... a6 {[%clk 0:02:53.9]} 8. Re1 {[%clk
0:03:01.7]} 8... Ba7 {[%clk 0:02:47]} 9. Nf1 {[%clk 0:03:01.6]} 9... Ne7 {[%clk
0:02:44.1]} 10. h3 {[%clk 0:02:56.9]} 10... Ng6 {[%clk 0:02:43.7]} 11. Bb3
{[%clk 0:02:56]} 11... c6 {[%clk 0:02:31.2]} 12. Ng3 {[%clk 0:02:53.7]} 12...
Re8 {[%clk 0:02:16.1]} 13. d4 {[%clk 0:02:52.1]} 13... Be6 {[%clk 0:02:11]} 14.
Be3 {[%clk 0:02:46.9]} 14... Qc7 {[%clk 0:01:59.8]} 15. Bg5 {[%clk 0:02:36.9]}
15... Bxb3 {[%clk 0:01:56.7]} 16. Qxb3 {[%clk 0:02:33.5]} 16... Nd7 {[%clk
0:01:56.9]} 17. Nf5 {[%clk 0:02:33.4]} 17... Ndf8 {[%clk 0:01:52.1]} 18. Rad1
{[%clk 0:02:19.6]} 18... Ne6 {[%clk 0:01:51.6]} 19. Be3 {[%clk 0:02:20.3]} 19...
exd4 {[%clk 0:01:13.4]} 20. cxd4 {[%clk 0:02:18.9]} 20... Ne7 {[%clk 0:01:10.4]}
21. N3h4 {[%clk 0:02:13.6]} 21... d5 {[%clk 0:01:03]} 22. e5 {[%clk 0:02:12.5]}
22... Nxf5 {[%clk 0:00:58.5]} 23. Nxf5 {[%clk 0:02:13.4]} 23... Qd7 {[%clk
0:00:52.3]} 24. Qc2 {[%clk 0:02:09.1]} 24... Bb8 {[%clk 0:00:46.8]} 25. f4
{[%clk 0:02:08.2]} 25... Nf8 {[%clk 0:00:43.1]} 26. Ng3 {[%clk 0:02:07.7]} 26...
Bc7 {[%clk 0:00:34.5]} 27. Nh5 {[%clk 0:02:00.9]} 27... Bd8 {[%clk 0:00:31.1]}
28. g4 {[%clk 0:01:47.4]} 28... f6 {[%clk 0:00:27.7]} 29. Bf2 {[%clk 0:01:44.3]}
29... fxe5 {[%clk 0:00:26.1]} 30. dxe5 {[%clk 0:01:45.2]} 30... Ng6 {[%clk
0:00:24.3]} 31. Bg3 {[%clk 0:01:35.5]} 31... Bc7 {[%clk 0:00:25]} 32. Qh2 {[%clk
0:01:24.8]} 32... Qe7 {[%clk 0:00:23.6]} 33. e6 {[%clk 0:01:22.8]} 33... Qc5+
{[%clk 0:00:23]} 34. Kh1 {[%clk 0:01:20.9]} 34... d4 {[%clk 0:00:22.6]} 35. f5
{[%clk 0:01:20.2]} 35... Nh4 {[%clk 0:00:22.4]} 36. Qe2 {[%clk 0:01:15.5]} 36...
Bxg3 {[%clk 0:00:18.2]} 37. Nxg3 {[%clk 0:01:16.4]} 37... Rad8 {[%clk
0:00:18.4]} 38. Rd3 {[%clk 0:01:13]} 38... Qd5+ {[%clk 0:00:17.8]} 39. Qe4
{[%clk 0:01:11.4]} 39... c5 {[%clk 0:00:16]} 40. b3 {[%clk 0:01:04.4]} 40... b5
{[%clk 0:00:15.3]} 41. Qxd5 {[%clk 0:01:02.5]} 41... Rxd5 {[%clk 0:00:16.2]} 42.
Re4 {[%clk 0:01:02.8]} 42... Kf8 {[%clk 0:00:11.5]} 43. Ne2 {[%clk 0:00:58.1]}
43... Rc8 {[%clk 0:00:08.7]} 44. b4 {[%clk 0:00:50.6]} 44... cxb4 {[%clk
0:00:06.9]} 45. Rdxd4 {[%clk 0:00:45]} 45... Rxd4 {[%clk 0:00:06.9]} 46. Rxd4
{[%clk 0:00:39.7]} 46... Rc2 {[%clk 0:00:07]} 47. Rd8+ {[%clk 0:00:38.2]} 47...
Ke7 {[%clk 0:00:06.8]} 48. Rd7+ {[%clk 0:00:38.9]} 48... Ke8 {[%clk 0:00:07]}
49. Nd4 {[%clk 0:00:39.6]} 49... Rd2 {[%clk 0:00:06.3]} 50. Rxg7 {[%clk
0:00:34.1]} 50... Rxd4 {[%clk 0:00:02.3]} 51. f6 {[%clk 0:00:34.5]} 51... Kd8
{[%clk 0:00:02]} 52. e7+ {[%clk 0:00:34]} 52... Kd7 {[%clk 0:00:02.1]} 53. Rg8
{[%clk 0:00:34.7]} 53... Rd1+ {[%clk 0:00:01.7]} 54. Kh2 {[%clk 0:00:34.7]}
54... Rd2+ {[%clk 0:00:01.6]} 55. Kg3 {[%clk 0:00:34.3]} 55... Re2 {[%clk
0:00:01.2]} 56. Kxh4 {[%clk 0:00:34.6]} 1-0

[Event "Late-Titled-Tuesday-Blitz-June-25-2024"]
[Site "Chess.com"]
[Date "2024.06.25"]
[Round "8"]
[White "Mops_2004"]
[Black "Keithonsky"]
[Result "1-0"]
[WhiteElo "2808"]
[BlackElo "2613"]
[TimeControl "180+1"]
[EndTime "15:27:20 PDT"]
[Termination "Mops_2004 won by resignation"]

1. d4 {[%clk 0:03:00.9]} 1... d5 {[%clk 0:02:55.6]} 2. c4 {[%clk 0:03:00.8]}
2... dxc4 {[%clk 0:02:56]} 3. e3 {[%clk 0:02:57.8]} 3... e6 {[%clk 0:02:54.4]}
4. Bxc4 {[%clk 0:02:56.8]} 4... c5 {[%clk 0:02:55.1]} 5. Nf3 {[%clk 0:02:56.7]}
5... a6 {[%clk 0:02:53.6]} 6. O-O {[%clk 0:02:52.8]} 6... Nf6 {[%clk 0:02:53.2]}
7. Nc3 {[%clk 0:02:49.4]} 7... b5 {[%clk 0:02:50.1]} 8. Bb3 {[%clk 0:02:49.3]}
8... Bb7 {[%clk 0:02:43.3]} 9. e4 {[%clk 0:02:49.1]} 9... cxd4 {[%clk
0:02:42.1]} 10. Nxd4 {[%clk 0:02:47.2]} 10... Bd6 {[%clk 0:02:40.5]} 11. Bxe6
{[%clk 0:02:28.7]} 11... Be5 {[%clk 0:02:21.3]} 12. Bd5 {[%clk 0:02:20.5]} 12...
Nxd5 {[%clk 0:02:16.6]} 13. Nxd5 {[%clk 0:02:18.9]} 13... Bxd5 {[%clk
0:02:15.2]} 14. exd5 {[%clk 0:02:18.8]} 14... Qxd5 {[%clk 0:02:16.1]} 15. Nf3
{[%clk 0:01:43.4]} 15... Qxd1 {[%clk 0:02:14.3]} 16. Rxd1 {[%clk 0:01:44.3]}
16... Bf6 {[%clk 0:02:13.6]} 17. a4 {[%clk 0:01:32.6]} 17... b4 {[%clk 0:02:07]}
18. Re1+ {[%clk 0:01:27.9]} 18... Kd7 {[%clk 0:02:05.9]} 19. Bg5 {[%clk
0:01:10.4]} 19... Bxb2 {[%clk 0:01:58.9]} 20. Rad1+ {[%clk 0:01:00.4]} 20... Kc8
{[%clk 0:01:59.1]} 21. Re7 {[%clk 0:00:48.1]} 21... Nc6 {[%clk 0:01:44.8]} 22.
Rxf7 {[%clk 0:00:45.9]} 22... Ra7 {[%clk 0:01:45.1]} 23. Rf4 {[%clk 0:00:28.3]}
23... Rd7 {[%clk 0:01:38.4]} 24. Rb1 {[%clk 0:00:19]} 24... Bc3 {[%clk
0:01:37.3]} 25. Rc4 {[%clk 0:00:15.2]} 25... Kb7 {[%clk 0:01:36.6]} 26. Be3
{[%clk 0:00:12.3]} 26... Kc7 {[%clk 0:01:24.1]} 27. Kf1 {[%clk 0:00:11.8]} 27...
h6 {[%clk 0:01:22.6]} 28. Ke2 {[%clk 0:00:10.8]} 28... g5 {[%clk 0:01:22.3]} 29.
h4 {[%clk 0:00:11.1]} 29... Re8 {[%clk 0:01:19.8]} 30. hxg5 {[%clk 0:00:10.7]}
30... hxg5 {[%clk 0:01:20.7]} 31. Nxg5 {[%clk 0:00:11.1]} 31... Rd2+ {[%clk
0:01:19.2]} 32. Kf1 {[%clk 0:00:08.6]} 32... Ra2 {[%clk 0:01:13.1]} 33. Ne4
{[%clk 0:00:08.1]} 33... Rxe4 {[%clk 0:00:53.8]} 34. Rxe4 {[%clk 0:00:07.9]}
34... Rxa4 {[%clk 0:00:52.7]} 35. g4 {[%clk 0:00:06.9]} 35... Ra2 {[%clk
0:00:48.2]} 36. g5 {[%clk 0:00:06.6]} 36... a5 {[%clk 0:00:48.9]} 37. g6 {[%clk
0:00:06.2]} 37... a4 {[%clk 0:00:49.2]} 38. Rc4 {[%clk 0:00:06.4]} 38... Kd7
{[%clk 0:00:44.2]} 39. Bg5 {[%clk 0:00:03.6]} 39... Ne5 {[%clk 0:00:11.4]} 40.
Rd1+ {[%clk 0:00:03.7]} 40... Ke6 {[%clk 0:00:11.2]} 41. g7 {[%clk 0:00:03.9]}
41... Nxc4 {[%clk 0:00:06.7]} 42. g8=Q+ {[%clk 0:00:03.8]} 42... Kf5 {[%clk
0:00:07.4]} 43. Qxc4 {[%clk 0:00:04.2]} 1-0